Workbook

Sheet Москва
A1: № | B1: Категория | C1: 2013-01-31 | D1: 2013-02-28 | E1: 2013-03-31 | F1: 2013-04-30 | G1: 2013-05-31 | H1: 2013-06-30 | I1: 2013-07-31 | J1: 2013-08-31 | K1: 2013-09-30 | L1: 2013-10-31 | M1: 2013-11-30 | N1: 2013-12-31 | O1: 2014-01-31 | P1: 2014-02-28 | Q1: 2014-03-31 | R1: 2014-04-30 | S1: 2014-05-31 | T1: 2014-06-30 | U1: 2014-07-31 | V1: 2014-08-31 | W1: 2014-09-30 | X1: 2014-10-31 | Y1: 2014-11-30 | Z1: 2014-12-30 | AA1: 2014-02-28
A2: 9 | B2: парфюмерия | C2: 62863 | D2: 81644 | E2: 73086 | F2: 57614 | G2: 47373 | H2: 46747 | I2: 52828 | J2: 54929 | K2: 61211 | L2: 67195 | M2: 66839 | N2: 88995 | O2: 65690 | P2: 75361 | Q2: 73090 | R2: 51303 | S2: 45348 | T2: 45371 | U2: 43501 | V2: 47866 | W2: 56848 | X2: 62604 | Y2: 62181 | Z2: 65769 | AA2: =RANK(INDEX(O2:Z2,MATCH(AA$1,O$1:Z$1,)),$O2:$Z2,0)+1/INDEX(O2:Z2,MATCH(AA$1,O$1:Z$1,)) -> 1.000013269
A3: 16 | B3: зубные щетки | C3: 32368 | D3: 40813 | E3: 30791 | F3: 23323 | G3: 20697 | H3: 21354 | I3: 25088 | J3: 23282 | K3: 24169 | L3: 27393 | M3: 32203 | N3: 60266 | O3: 42610 | P3: 44661 | Q3: 33949 | R3: 24871 | S3: 20641 | T3: 21248 | U3: 19703 | V3: 22785 | W3: 23741 | X3: 26370 | Y3: 29789 | Z3: 34333 | AA3: =RANK(INDEX(O3:Z3,MATCH(AA$1,O$1:Z$1,)),$O3:$Z3,0)+1/INDEX(O3:Z3,MATCH(AA$1,O$1:Z$1,)) -> 1.000022391
A4: 24 | B4: тампоны | C4: 19960 | D4: 20452 | E4: 20447 | F4: 21576 | G4: 21346 | H4: 23362 | I4: 26083 | J4: 25349 | K4: 21515 | L4: 21900 | M4: 17853 | N4: 15955 | O4: 20103 | P4: 20337 | Q4: 18634 | R4: 17709 | S4: 17501 | T4: 18408 | U4: 18892 | V4: 20326 | W4: 16839 | X4: 17613 | Y4: 15548 | Z4: 11827 | AA4: =RANK(INDEX(O4:Z4,MATCH(AA$1,O$1:Z$1,)),$O4:$Z4,0)+1/INDEX(O4:Z4,MATCH(AA$1,O$1:Z$1,)) -> 1.000049171
A5: 5 | B5: краски для волос | C5: 92692 | D5: 108631 | E5: 117953 | F5: 112172 | G5: 98886 | H5: 100287 | I5: 100587 | J5: 102593 | K5: 102152 | L5: 106539 | M5: 92953 | N5: 92752 | O5: 97949 | P5: 98592 | Q5: 108631 | R5: 98357 | S5: 86443 | T5: 81304 | U5: 73612 | V5: 86582 | W5: 86266 | X5: 95634 | Y5: 85314 | Z5: 74108 | AA5: =RANK(INDEX(O5:Z5,MATCH(AA$1,O$1:Z$1,)),$O5:$Z5,0)+1/INDEX(O5:Z5,MATCH(AA$1,O$1:Z$1,)) -> 2.000010143
A6: 6 | B6: салфетки | C6: 77575 | D6: 87824 | E6: 89014 | F6: 78105 | G6: 63669 | H6: 62285 | I6: 66841 | J6: 69333 | K6: 72005 | L6: 81043 | M6: 79076 | N6: 92363 | O6: 84479 | P6: 87001 | Q6: 89943 | R6: 80234 | S6: 66477 | T6: 60933 | U6: 57437 | V6: 62433 | W6: 67852 | X6: 80500 | Y6: 86236 | Z6: 72525 | AA6: =RANK(INDEX(O6:Z6,MATCH(AA$1,O$1:Z$1,)),$O6:$Z6,0)+1/INDEX(O6:Z6,MATCH(AA$1,O$1:Z$1,)) -> 2.000011494
A7: 23 | B7: моющие средства | C7: 16749 | D7: 18274 | E7: 19658 | F7: 19949 | G7: 15808 | H7: 15436 | I7: 16863 | J7: 17086 | K7: 18732 | L7: 21030 | M7: 19651 | N7: 19280 | O7: 20107 | P7: 22825 | Q7: 24246 | R7: 21459 | S7: 17442 | T7: 16108 | U7: 15207 | V7: 18089 | W7: 19619 | X7: 22342 | Y7: 20504 | Z7: 15152 | AA7: =RANK(INDEX(O7:Z7,MATCH(AA$1,O$1:Z$1,)),$O7:$Z7,0)+1/INDEX(O7:Z7,MATCH(AA$1,O$1:Z$1,)) -> 2.000043812
A8: 21 | B8: туалетная бумага | C8: 16844 | D8: 18172 | E8: 19544 | F8: 18440 | G8: 15660 | H8: 14220 | I8: 16133 | J8: 16936 | K8: 17825 | L8: 20690 | M8: 19842 | N8: 18672 | O8: 20896 | P8: 21536 | Q8: 22537 | R8: 20145 | S8: 15088 | T8: 14968 | U8: 14327 | V8: 15635 | W8: 19114 | X8: 21469 | Y8: 20468 | Z8: 15673 | AA8: =RANK(INDEX(O8:Z8,MATCH(AA$1,O$1:Z$1,)),$O8:$Z8,0)+1/INDEX(O8:Z8,MATCH(AA$1,O$1:Z$1,)) -> 2.000046434
A9: 2 | B9: мыло | C9: 136432 | D9: 147191 | E9: 143421 | F9: 116217 | G9: 96496 | H9: 89807 | I9: 97569 | J9: 106019 | K9: 108494 | L9: 121859 | M9: 117418 | N9: 130628 | O9: 138739 | P9: 136735 | Q9: 141618 | R9: 110010 | S9: 91148 | T9: 84632 | U9: 77581 | V9: 95607 | W9: 97747 | X9: 118300 | Y9: 121734 | Z9: 102085 | AA9: =RANK(INDEX(O9:Z9,MATCH(AA$1,O$1:Z$1,)),$O9:$Z9,0)+1/INDEX(O9:Z9,MATCH(AA$1,O$1:Z$1,)) -> 3.000007313
A10: 7 | B10: маски для волос | C10: 82934 | D10: 93907 | E10: 100182 | F10: 81108 | G10: 63030 | H10: 60609 | I10: 67072 | J10: 76715 | K10: 84445 | L10: 90594 | M10: 77161 | N10: 59602 | O10: 83144 | P10: 78189 | Q10: 82614 | R10: 70093 | S10: 56819 | T10: 52671 | U10: 49064 | V10: 60658 | W10: 62980 | X10: 77073 | Y10: 74974 | Z10: 47142 | AA10: =RANK(INDEX(O10:Z10,MATCH(AA$1,O$1:Z$1,)),$O10:$Z10,0)+1/INDEX(O10:Z10,MATCH(AA$1,O$1:Z$1,)) -> 3.00001279
A11: 8 | B11: тушь | C11: 85558 | D11: 77810 | E11: 87014 | F11: 69349 | G11: 57382 | H11: 52620 | I11: 53724 | J11: 62027 | K11: 67688 | L11: 78933 | M11: 73647 | N11: 93534 | O11: 78327 | P11: 74232 | Q11: 85722 | R11: 68063 | S11: 58295 | T11: 52676 | U11: 47498 | V11: 54973 | W11: 60770 | X11: 71532 | Y11: 68565 | Z11: 58294 | AA11: =RANK(INDEX(O11:Z11,MATCH(AA$1,O$1:Z$1,)),$O11:$Z11,0)+1/INDEX(O11:Z11,MATCH(AA$1,O$1:Z$1,)) -> 3.000013471
A12: 10 | B12: маски для лица | C12: 50968 | D12: 57027 | E12: 64888 | F12: 51678 | G12: 40811 | H12: 39612 | I12: 41847 | J12: 46226 | K12: 44913 | L12: 54861 | M12: 48236 | N12: 44182 | O12: 63660 | P12: 56546 | Q12: 60984 | R12: 56019 | S12: 43861 | T12: 40919 | U12: 37080 | V12: 41121 | W12: 42664 | X12: 51929 | Y12: 53915 | Z12: 42754 | AA12: =RANK(INDEX(O12:Z12,MATCH(AA$1,O$1:Z$1,)),$O12:$Z12,0)+1/INDEX(O12:Z12,MATCH(AA$1,O$1:Z$1,)) -> 3.000017685
A13: 15 | B13: швабры | C13: 40556 | D13: 38372 | E13: 46648 | F13: 42329 | G13: 31145 | H13: 30534 | I13: 36278 | J13: 35535 | K13: 36226 | L13: 39234 | M13: 34860 | N13: 38216 | O13: 44102 | P13: 42426 | Q13: 44016 | R13: 38085 | S13: 31730 | T13: 27865 | U13: 27116 | V13: 33802 | W13: 37925 | X13: 40447 | Y13: 41445 | Z13: 34675 | AA13: =RANK(INDEX(O13:Z13,MATCH(AA$1,O$1:Z$1,)),$O13:$Z13,0)+1/INDEX(O13:Z13,MATCH(AA$1,O$1:Z$1,)) -> 3.00002357
A14: 20 | B14: дезодоранты | C14: 23363 | D14: 30289 | E14: 29950 | F14: 33372 | G14: 33906 | H14: 32901 | I14: 28014 | J14: 27123 | K14: 22053 | L14: 24376 | M14: 24408 | N14: 25776 | O14: 26077 | P14: 31843 | Q14: 32903 | R14: 30842 | S14: 33608 | T14: 27549 | U14: 26278 | V14: 25810 | W14: 21289 | X14: 23317 | Y14: 23948 | Z14: 17803 | AA14: =RANK(INDEX(O14:Z14,MATCH(AA$1,O$1:Z$1,)),$O14:$Z14,0)+1/INDEX(O14:Z14,MATCH(AA$1,O$1:Z$1,)) -> 3.000031404
A15: 25 | B15: кремы для рук | C15: 14082 | D15: 13915 | E15: 16141 | F15: 10695 | G15: 6835 | H15: 5666 | I15: 5517 | J15: 6647 | K15: 7746 | L15: 10851 | M15: 10716 | N15: 16463 | O15: 18761 | P15: 15189 | Q15: 15881 | R15: 13162 | S15: 8457 | T15: 7044 | U15: 5878 | V15: 6382 | W15: 8826 | X15: 13824 | Y15: 14636 | Z15: 14584 | AA15: =RANK(INDEX(O15:Z15,MATCH(AA$1,O$1:Z$1,)),$O15:$Z15,0)+1/INDEX(O15:Z15,MATCH(AA$1,O$1:Z$1,)) -> 3.000065837
A16: 1 | B16: шампуни | C16: 184233 | D16: 199507 | E16: 205342 | F16: 185091 | G16: 152377 | H16: 147497 | I16: 157374 | J16: 175530 | K16: 179002 | L16: 198548 | M16: 170213 | N16: 161823 | O16: 198811 | P16: 185479 | Q16: 200239 | R16: 178597 | S16: 151284 | T16: 137455 | U16: 133401 | V16: 155095 | W16: 168372 | X16: 192367 | Y16: 179711 | Z16: 129391 | AA16: =RANK(INDEX(O16:Z16,MATCH(AA$1,O$1:Z$1,)),$O16:$Z16,0)+1/INDEX(O16:Z16,MATCH(AA$1,O$1:Z$1,)) -> 4.000005391
A17: 14 | B17: лак для ногтей | C17: 44154 | D17: 46821 | E17: 53412 | F17: 47952 | G17: 43063 | H17: 48945 | I17: 49202 | J17: 47076 | K17: 44540 | L17: 47902 | M17: 43302 | N17: 43857 | O17: 45270 | P17: 42603 | Q17: 48095 | R17: 42991 | S17: 39610 | T17: 40468 | U17: 34398 | V17: 37538 | W17: 33615 | X17: 37836 | Y17: 36046 | Z17: 36843 | AA17: =RANK(INDEX(O17:Z17,MATCH(AA$1,O$1:Z$1,)),$O17:$Z17,0)+1/INDEX(O17:Z17,MATCH(AA$1,O$1:Z$1,)) -> 4.000023473
A18: 13 | B18: кремы для лица | C18: 32051 | D18: 36211 | E18: 44844 | F18: 36888 | G18: 25591 | H18: 21514 | I18: 20000 | J18: 22265 | K18: 26921 | L18: 34679 | M18: 33910 | N18: 35114 | O18: 45713 | P18: 40733 | Q18: 46601 | R18: 40078 | S18: 30665 | T18: 25207 | U18: 21677 | V18: 22869 | W18: 28927 | X18: 40113 | Y18: 42724 | Z18: 35109 | AA18: =RANK(INDEX(O18:Z18,MATCH(AA$1,O$1:Z$1,)),$O18:$Z18,0)+1/INDEX(O18:Z18,MATCH(AA$1,O$1:Z$1,)) -> 4.00002455
A19: 17 | B19: зубные пасты | C19: 29143 | D19: 31926 | E19: 31403 | F19: 31082 | G19: 24560 | H19: 22845 | I19: 24922 | J19: 25332 | K19: 25856 | L19: 29202 | M19: 28346 | N19: 28483 | O19: 32480 | P19: 31738 | Q19: 34195 | R19: 31204 | S19: 24156 | T19: 23161 | U19: 22212 | V19: 24307 | W19: 25043 | X19: 30096 | Y19: 31808 | Z19: 23349 | AA19: =RANK(INDEX(O19:Z19,MATCH(AA$1,O$1:Z$1,)),$O19:$Z19,0)+1/INDEX(O19:Z19,MATCH(AA$1,O$1:Z$1,)) -> 4.000031508
A20: 19 | B20: пеленки | C20: 22234 | D20: 23163 | E20: 23717 | F20: 21246 | G20: 18529 | H20: 18880 | I20: 21915 | J20: 22337 | K20: 23844 | L20: 23615 | M20: 20894 | N20: 18603 | O20: 26238 | P20: 23938 | Q20: 24820 | R20: 22337 | S20: 19751 | T20: 19125 | U20: 18013 | V20: 21042 | W20: 22084 | X20: 23985 | Y20: 21536 | Z20: 15954 | AA20: =RANK(INDEX(O20:Z20,MATCH(AA$1,O$1:Z$1,)),$O20:$Z20,0)+1/INDEX(O20:Z20,MATCH(AA$1,O$1:Z$1,)) -> 4.000041775
A21: 11 | B21: подгузники | C21: 52560 | D21: 55666 | E21: 61117 | F21: 57595 | G21: 49383 | H21: 49057 | I21: 50702 | J21: 52332 | K21: 63377 | L21: 56757 | M21: 51644 | N21: 46098 | O21: 59337 | P21: 52614 | Q21: 55046 | R21: 49353 | S21: 45299 | T21: 43945 | U21: 39997 | V21: 46179 | W21: 51089 | X21: 51464 | Y21: 52748 | Z21: 54892 | AA21: =RANK(INDEX(O21:Z21,MATCH(AA$1,O$1:Z$1,)),$O21:$Z21,0)+1/INDEX(O21:Z21,MATCH(AA$1,O$1:Z$1,)) -> 5.000019006
A22: 12 | B22: пудра | C22: 48987 | D22: 53888 | E22: 59815 | F22: 50871 | G22: 42323 | H22: 39371 | I22: 41186 | J22: 44305 | K22: 47107 | L22: 52922 | M22: 47645 | N22: 56111 | O22: 52821 | P22: 50342 | Q22: 63264 | R22: 53251 | S22: 44676 | T22: 38002 | U22: 35515 | V22: 39226 | W22: 43996 | X22: 51880 | Y22: 49250 | Z22: 45965 | AA22: =RANK(INDEX(O22:Z22,MATCH(AA$1,O$1:Z$1,)),$O22:$Z22,0)+1/INDEX(O22:Z22,MATCH(AA$1,O$1:Z$1,)) -> 5.000019864
A23: 18 | B23: подводка | C23: 23155 | D23: 26114 | E23: 26777 | F23: 25560 | G23: 23123 | H23: 22028 | I23: 25444 | J23: 25680 | K23: 26434 | L23: 28450 | M23: 25925 | N23: 27745 | O23: 28178 | P23: 28286 | Q23: 30800 | R23: 28333 | S23: 24921 | T23: 24425 | U23: 21930 | V23: 24610 | W23: 27317 | X23: 30736 | Y23: 29789 | Z23: 24483 | AA23: =RANK(INDEX(O23:Z23,MATCH(AA$1,O$1:Z$1,)),$O23:$Z23,0)+1/INDEX(O23:Z23,MATCH(AA$1,O$1:Z$1,)) -> 5.000035353
A24: 22 | B24: молокоотсосы | C24: 19351 | D24: 18902 | E24: 18942 | F24: 17852 | G24: 16943 | H24: 16932 | I24: 19568 | J24: 19091 | K24: 18486 | L24: 18250 | M24: 16445 | N24: 15638 | O24: 20215 | P24: 16931 | Q24: 17359 | R24: 15717 | S24: 15297 | T24: 15612 | U24: 14673 | V24: 17055 | W24: 16030 | X24: 17186 | Y24: 16232 | Z24: 11657 | AA24: =RANK(INDEX(O24:Z24,MATCH(AA$1,O$1:Z$1,)),$O24:$Z24,0)+1/INDEX(O24:Z24,MATCH(AA$1,O$1:Z$1,)) -> 5.000059063
A25: 4 | B25: прокладки | C25: 98910 | D25: 111005 | E25: 113445 | F25: 121183 | G25: 111268 | H25: 112279 | I25: 119404 | J25: 119463 | K25: 120100 | L25: 123858 | M25: 106647 | N25: 99209 | O25: 116406 | P25: 118501 | Q25: 132342 | R25: 127967 | S25: 118664 | T25: 111875 | U25: 104613 | V25: 110796 | W25: 119490 | X25: 131354 | Y25: 115562 | Z25: 80644 | AA25: =RANK(INDEX(O25:Z25,MATCH(AA$1,O$1:Z$1,)),$O25:$Z25,0)+1/INDEX(O25:Z25,MATCH(AA$1,O$1:Z$1,)) -> 6.000008439
A26: 3 | B26: батарейки | C26: 104006 | D26: 97025 | E26: 97362 | F26: 92112 | G26: 84602 | H26: 87422 | I26: 92539 | J26: 91722 | K26: 101543 | L26: 100928 | M26: 100347 | N26: 119766 | O26: 128964 | P26: 107370 | Q26: 117675 | R26: 104761 | S26: 97567 | T26: 92048 | U26: 82948 | V26: 96496 | W26: 105123 | X26: 121750 | Y26: 117593 | Z26: 112123 | AA26: =RANK(INDEX(O26:Z26,MATCH(AA$1,O$1:Z$1,)),$O26:$Z26,0)+1/INDEX(O26:Z26,MATCH(AA$1,O$1:Z$1,)) -> 6.000009314
B27: Итого: | C27: =SUM(C2:C26) -> 1411728 | D27: =SUM(D2:D26) -> 1534549 | E27: =SUM(E2:E26) -> 1594913 | F27: =SUM(F2:F26) -> 1423359 | G27: =SUM(G2:G26) -> 1204806 | H27: =SUM(H2:H26) -> 1182210 | I27: =SUM(I2:I26) -> 1256700 | J27: =SUM(J2:J26) -> 1314933 | K27: =SUM(K2:K26) -> 1366384 | L27: =SUM(L2:L26) -> 1481609 | M27: =SUM(M2:M26) -> 1360181 | N27: =SUM(N2:N26) -> 1449131 | O27: =SUM(O2:O26) -> 1559077 | P27: =SUM(P2:P26) -> 1504008 | Q27: =SUM(Q2:Q26) -> 1605204 | R27: =SUM(R2:R26) -> 1394941 | S27: =SUM(S2:S26) -> 1204748 | T27: =SUM(T2:T26) -> 1123019 | U27: =SUM(U2:U26) -> 1042551 | V27: =SUM(V2:V26) -> 1187282 | W27: =SUM(W2:W26) -> 1263566 | X27: =SUM(X2:X26) -> 1451721 | Y27: =SUM(Y2:Y26) -> 1412256 | Z27: =SUM(Z2:Z26) -> 1177134
